Cogmind - Beta 13 *** ADVENTURER MODE // 2024.04.09 @ 17:07:00 Player: XorOwl Result: Destroyed by G-47 Trooper with Particle Gun Performance ------------- Evolutions (0) 0 Regions Visited (2) 400 Robots Destroyed (7) 35 Value Destroyed (147) 147 Prototype IDs (0) 0 Alien Tech Used (0) 0 Bonus (0) 0 TOTAL SCORE: 582 Bonus ------- None Cogmind --------- Core Integrity 0/250 Matter 300/300 Energy 100/100 System Corruption 3% Temperature Cool (9) Movement Walking (120) Location -10/Mines Parts ------- > --- POWER (1) -------- (None) > --- PROPULSION (2) --- Aluminum Leg > --- UTILITY (2) ------ (None) > --- WEAPON (2) ------- (None) > --- INVENTORY (5) ---- Ion Engine Carbon-fiber Leg Small Storage Unit Sensor Array Peak State ------------ > --- POWER ------------ Light Ion Engine > --- PROPULSION ------- Light Treads > --- UTILITY ---------- Improved Terrain Scanner Seismic Detector > --- WEAPON ----------- Beam Cannon Mining Laser > --- INVENTORY -------- Ion Engine Small Storage Unit Sensor Array [Rating: 8] Favorites ----------- Power Ion Engine Engine Ion Engine Propulsion Light Treads Treads Light Treads Leg Aluminum Leg Utility Sensor Array Device Sensor Array Storage Small Storage Unit Weapon Grenade Launcher Energy Gun Medium Laser Energy Cannon Beam Cannon Ballistic Gun Light Assault Rifle Launcher Grenade Launcher Special Weapon Mining Laser Build | -11 -10 -10 ------- Run | Yrd Mat Min Slots Evolved . | . . . Power . | . . . Propulsion . | . . . Utility . | . . . Weapon . | . . . Parts Attached 17 | 5 3 9 Power 2 | 1 . 1 Engine 2 | 1 . 1 Core . | . . . Reactor . | . . . Propulsion 4 | 2 . 2 Treads 2 | 2 . . Leg 2 | . . 2 Wheel . | . . . Hover . | . . . Flight . | . . . Utility 6 | 1 2 3 Device 3 | . 1 2 Storage 3 | 1 1 1 Processor . | . . . Hackware . | . . . Protection . | . . . Artifact . | . . . Weapon 5 | 1 1 3 Energy Gun 1 | 1 . . Energy Cannon 1 | . . 1 Ballistic Gun 1 | . . 1 Ballistic Cannon . | . . . Launcher 1 | . 1 . Special Weapon 1 | . . 1 Impact Weapon . | . . . Slashing Weapon . | . . . Piercing Weapon . | . . . Special Melee Weapon . | . . . Unidentified Prototypes . | . . . Parts Lost 12 | . . 12 Power 2 | . . 2 Propulsion 2 | . . 2 Utility 4 | . . 4 Weapon 4 | . . 4 Highest Loss Streak 6 | . . 6 To Critical Strikes . | . . . Average Slot Usage (%) 81 | . 89 79 Engine 13 | . 14 12 Treads 21 | . 28 19 Leg 1 | . . 1 Device 13 | . 6 15 Storage 8 | . 14 7 Energy Gun 4 | . 14 1 Energy Cannon 4 | . . 5 Ballistic Gun 4 | . . 5 Launcher 7 | . 12 6 Special Weapon 2 | . . 3 Naked Turns . | . . . Heaviest Build 16 | 12 16 15 Greatest Support 40 | 40 40 40 Greatest Overweight (x) 2 | . . 2 Average Overweight (x) . | . . . Largest Inventory Capacity 8 | 8 8 8 Average Capacity 6 | 7 7 5 Most Carried 6 | 5 6 5 Average Carried 3 | 2 3 3 Final Capacity 8 | 8 5 5 Final Carried 4 | 3 4 4 Class Distribution -------------------- 83% | Mutant 16% | Scavenger-Mutant Dominant Class ---------------- Mutant | -10/Materials Mutant | -10/Mines Resources | -11 -10 -10 ----------- Run | Yrd Mat Min Matter Collected 407 | 230 50 127 Remotely . | . . . Salvage Created 221 | . 70 151 Parts 14 | . 3 11 Haulers Intercepted . | . . . Recyclers Shooed . | . . . Parts Field Recycled . | . . . Retrieved Matter . | . . . Parts Self-Destructed . | . . . Prevented . | . . . Kills | -11 -10 -10 ------- Run | Yrd Mat Min Combat Hostiles Destroyed 20 | . 2 18 Guns 2 | . . 2 Cannons 3 | . . 3 AOE 15 | . 2 13 Classes Destroyed 5 | . 1 4 Builder 1 | . . 1 Tunneler 1 | . . 1 Swarmer 2 | . . 2 Grunt 3 | . 2 1 Assembled 15 | . . 15 Best Kill Streak 14 | . 2 14 Combat Bots Only 14 | . 2 14 Max Kills in Single Turn 4 | . 2 4 Gunslinging . | . . . Exploded 4 | . 2 4 Melee . | . . . Uniques/NPCs Destroyed . | . . . Combat | -11 -10 -10 -------- Run | Yrd Mat Min Hostile Shots Fired 93 | . 5 88 Missed 21 | . 3 18 Damage Taken 1182 | . 38 1144 Core 256 | . . 256 Absorbed by Shields . | . . . Ignored by Resistances 334 | . 12 322 Core Remaining (%) 100 | 100 . . Volleys Fired 39 | . 2 37 Largest 2 | . 2 2 Hottest 100 | . 80 100 Shots Fired 48 | . 4 44 Gun 21 | . 2 19 Cannon 19 | . . 19 Launcher 6 | . 2 4 Special 2 | . . 2 Kinetic 19 | . . 19 Thermal 23 | . 2 21 Explosive 6 | . 2 4 Electromagnetic . | . . . Robot Hit Streak 9 | . 4 9 Robot Miss Streak 2 | . . 2 Penetration Max . | . . . Secondary Targets . | . . . Shots Hit Robots 31 | . 4 27 Core Hits 56 | . 4 52 Critical Kills . | . . . Critical Parts Destroyed . | . . . Critical Strikes . | . . . Melee Attacks . | . . . Impact . | . . . Slashing . | . . . Piercing . | . . . Sneak Attacks . | . . . Combat Hostiles . | . . . Follow-up Attacks . | . . . Damage Inflicted 1378 | . 150 1228 Guns 146 | . 25 121 Cannons 209 | . . 209 Explosions 952 | . 125 827 Melee . | . . . Ramming 23 | . . 23 Kinetic 121 | . . 121 Thermal 282 | . 25 257 Explosive 952 | . 125 827 Electromagnetic . | . . . Impact . | . . . Slashing . | . . . Piercing . | . . . Highest Corruption 3 | . . 3 Average Corruption 3 | . . 3 Corruption Purged . | . . . Corruption Blocked . | . . . Effects 9 | . . 9 Message Errors 1 | . . 1 Matter Fused 1 | . . 1 Heat Flow Errors 1 | . . 1 Energy Discharges 1 | . . 1 Parts Rejected 1 | . . 1 Data Loss (minor) 1 | . . 1 Misfires 2 | . . 2 Alerts 1 | . . 1 Overload Shots . | . . . Overflow Damage . | . . . Projectiles . | . . . Explosions . | . . . Melee . | . . . Knockbacks . | . . . Impact . | . . . Kinetic . | . . . Secondary . | . . . Self-Inflicted Damage 19 | . 19 . Shots 2 | . 2 . Rammed . | . . . Targets Rammed 36 | . . 36 Kicked 36 | . . 36 Crushed . | . . . Highest Temperature 180 | . 42 180 Average Temperature 63 | . 23 66 Received Heat Transfer 324 | . 15 309 Siege Activations . | . . . Robots Corrupted . | . . . Combat Hostiles . | . . . Parts Fried . | . . . Impact Corruptions . | . . . Robots Melted . | . . . Combat Hostiles . | . . . Parts Melted . | . . . Heat Transferred 618 | . 74 544 Parts Sabotaged . | . . . Parts Stolen . | . . . Parts Stripped . | . . . Power Chain Reactions . | . . . Alert | -11 -10 -10 ------- Run | Yrd Mat Min Peak Influence 55 | . 55 55 Initial 18 | . . 18 Average 17 | . 44 11 Maximum Alert Level . | . . . Low Security (%) 100 | 100 100 100 Level 1 . | . . . Level 2 . | . . . Level 3 . | . . . Level 4 . | . . . Level 5 . | . . . High Security . | . . . Max Security . | . . . Squads Dispatched . | . . . Investigation . | . . . Extermination . | . . . Reinforcement . | . . . Assault . | . . . Garrison . | . . . Intercept . | . . . Searches Triggered . | . . . Construction Impeded . | . . . Haulers Reinforced . | . . . Active Scanning Responses . | . . . Cargo Convoy Interrupts . | . . . Stealth | -11 -10 -10 --------- Run | Yrd Mat Min Distress Signals 1 | . 1 . Communications Jammed . | . . . Distress Signals . | . . . Times Spotted 27 | . 2 25 Peak Tracking Total 16 | . 2 16 Tactical Retreats 1 | . . 1 Traps | -11 -10 -10 ------- Run | Yrd Mat Min Traps Triggered . | . . . Indirectly . | . . . Trap Hack Attempts . | . . . Triggered . | . . . Disarmed . | . . . Reprogrammed . | . . . Reused . | . . . Traps Extracted . | . . . Installed . | . . . Triggered . | . . . Machines | -11 -10 -10 ---------- Run | Yrd Mat Min Machines Disabled . | . . . Max in Single Turn . | . . . Machines Repaired . | . . . Machines Dismantled . | . . . Machines Sabotaged . | . . . Overloaded Fab Kills . | . . . Hacking | -11 -10 -10 --------- Run | Yrd Mat Min Machines Accessed 1 | . 1 . Terminals 1 | . 1 . Fabricators . | . . . Repair Stations . | . . . Recycling Units . | . . . Scanalyzers . | . . . Garrison Access . | . . . Total Hacks 3 | . 3 . Successful 2 | . 2 . Failed 1 | . 1 . Catastrophic . | . . . Database Lockouts . | . . . Manual . | . . . Terminals 3 | . 3 . Fabricators . | . . . Repair Stations . | . . . Recycling Units . | . . . Scanalyzers . | . . . Garrison Access . | . . . Terminal Hacks 2 | . 2 . Dispatch Records 1 | . 1 . Zone Layout 1 | . 1 . Fabricator Hacks . | . . . Repair Station Hacks . | . . . Recycling Unit Hacks . | . . . Scanalyzer . | . . . Garrison Access Hacks . | . . . Unauthorized Hacks . | . . . Terminals . | . . . Fabricators . | . . . Repair Stations . | . . . Recycling Units . | . . . Scanalyzers . | . . . Garrison Access . | . . . Data Cores Recovered . | . . . Used . | . . . Hacking Detections 1 | . 1 . Full Trace Events . | . . . Feedback Events . | . . . Feedback Blocked . | . . . Robot Schematics Acquired . | . . . Robots Built . | . . . Authchips . | . . . Time . | . . . Total Robot Build Rating . | . . . Part Schematics Acquired . | . . . Parts Built . | . . . Authchips . | . . . Time . | . . . Total Part Build Rating . | . . . Parts Repaired . | . . . Time . | . . . Parts Recycled . | . . . Recycled Matter . | . . . Retrieved Matter . | . . . Retrieved Components . | . . . Parts Scanalyzed . | . . . Part Schematics Acquired . | . . . Parts Damaged . | . . . Bothacking | -11 -10 -10 ------------ Run | Yrd Mat Min Used RIF Installer . | . . . Robots Hacked . | . . . Non-combat . | . . . Combat . | . . . Robot Hacks Applied . | . . . Relay Couplers Released . | . . . Fabnet Peak Effective % . | . . . Robots Rewired . | . . . Allies Hacked . | . . . Hacks Repelled . | . . . Allies | -11 -10 -10 -------- Run | Yrd Mat Min Total Allies . | . . . Largest Group . | . . . Highest-Rated Group . | . . . Highest-Rated Ally . | . . . Total Orders . | . . . Ally Attacks . | . . . Total Damage . | . . . Kills . | . . . Allies Corrupted . | . . . Allies Melted . | . . . Intel | -11 -10 -10 ------- Run | Yrd Mat Min Robot Analysis Total . | . . . Derelict Logs Recovered 2 | . . 2 Drone Launches . | . . . Drone Recoveries . | . . . Exploration | -11 -10 -10 ------------- Run | Yrd Mat Min Turns Passed 744 | 43 140 561 Spaces Moved 364 | 24 76 264 Core 11 | 7 . 4 Treads 352 | 17 76 259 Legs 1 | . . 1 Wheels . | . . . Hover . | . . . Flight . | . . . Fastest Speed 50 | 50 160 100 Average Speed 157 | 127 160 159 Slowest Speed 160 | 160 160 160 Overloaded Moves . | . . . Propulsion Burnouts . | . . . Robots Hopped . | . . . Cave-ins Triggered . | . . . Exploration Rate (%) 26 | 4 22 54 Regions Visited 2 Branch Regions 1 Pre-discovered Areas 2 | . . 2 Known Exits Taken . | . . . Unknown Exits Taken 2 | 1 1 . Scrap Searched . | . . . Spaces Dug . | . . . Terrain Destroyed 21 | . 4 17 Melee . | . . . Projectile . | . . . AOE 21 | . 4 17 Terrain Rammed . | . . . Walls Destroyed . | . . . Machines Disabled . | . . . Actions | -11 -10 -10 --------- Run | Yrd Mat Min Total 483 | 36 91 356 Wait 5 | . 4 1 Move 362 | 23 75 264 Hop . | . . . Pick Up 21 | 8 5 8 Fast Attach . | . . . Attach 15 | 5 2 8 Detach . | . . . Swap 2 | . 1 1 Drop 3 | . 2 1 Fire 39 | . 2 37 Melee . | . . . Ram . | . . . Kick 36 | . . 36 Crush . | . . . Escape Stasis . | . . . Rewire . | . . . Trap . | . . . Miscellaneous . | . . . Route ------- -11/Scrapyard -10/Materials -10/Mines History --------- Turn | Location | Event 9 | -11/Scrapyard | Discovered new exit (range 16) 44 | -11/Scrapyard | Entered Materials 148 | -10/Materials | Met 8R-AWN 152 | -10/Materials | Discovered new exit (range 13) 184 | -10/Materials | Entered Mines 186 | -10/Mines | Followed 8R-AWN into the Mines 196 | -10/Mines | Met a Derelict bent on vengeance 257 | -10/Mines | Learned location of Recycling (-7) 306 | -10/Mines | Build established: Mutant 384 | -10/Mines | Assembled infested the area 389 | -10/Mines | Assisted by a Guerilla fighting off Assembled 425 | -10/Mines | Destroyed 14 combat bots 505 | -10/Mines | Lost 5 parts (1p1n1u2w) 688 | -10/Mines | Core integrity fell below 50% 724 | -10/Mines | Core integrity fell below 20% 739 | -10/Mines | Learned location of Zion (-7) 745 | -10/Mines | Destroyed by G-47 Trooper with Particle Gun Last Messages --------------- Kicked G-47 Trooper. Imp. Terrain Scanner destroyed. Kicked G-47 Trooper out of the way. Kicked G-47 Trooper. Kicked G-47 Trooper out of the way. Kicked G-47 Trooper. Kicked G-47 Trooper out of the way. Kicked G-47 Trooper. Critical hit (Burn: +37). Kicked G-47 Trooper. Kicked G-47 Trooper out of the way. System corrupted: Energy discharge (-37). Kicked G-47 Trooper. Lgt. Ion Engine destroyed. Kicked G-47 Trooper out of the way. Acquired derelict log, extracted data. World map updated: -7/Zion. Kicked G-47 Trooper. Kicked G-47 Trooper out of the way. Kicked G-47 Trooper. Map ----- +----------------------------------------------------+ | ##??????????????????????????????????????????? | | ##?????????????????????????????????????????? | | #?????????????????????????????????????????? | | ???????????????????????????????????????????? | | #?????????????????????????????????????????????? | | ??????????????????????????????????????????????? | | ??????????????????????????????????????????????? | | ??????????????????????????????????????????????? | | ??????????????????????????????????????????????? | | ??????????????????????????????????????????????? | | ??????????????????????????????????????????????? | | ##????????????????????????????????????????????? | | #????????????????????????????????????????????? | | #????????????????????????????????????????????? | | ?#????????????????????????????????????????????? | | ??????????????????????????????????????????????? | | ??????????????????????#???#???????????????????? | | ???????????????????? ?????#???????????????????? | | ???????????????????? ???????????#??? ?????????? | | ?????????????????##???????????????????????????? | | ?????????????????????????????????????? ???????? | | ????????????????????????#???????????? ????????? | | ??????????????????????????????????????????????? | | ##?????????????#??????????? #?????????????????? | | ##?????????????????##?#### #??????????###????? | | ##??????????#????????#%@g #???????### ##???? | | #?????????##????????#%####??????# ##??? | | #???????????????????#%#????????# ##?? | | #???????????????????#%#?####?## #?? | | ####???????????????????#%###%!### #?? | | #??????????????????????#%%%= ##? | | #????????????????#?????#### #??? | | ######?????????????????#??## #???#? | | #????????????????????#### ##????# | | ### #???????#????#?#???#????#### ####?????? | | #?# #??????????#??????#??????### ####????????? | | #?# #??????????????#?????????# #?????#?????? | | #?# #????????????#?##????????# ###???????#??#? | | ?## #?#????????#?????#??????## #?????????#???? | | ## #??????????????????#?#### ##????#?#?????? | | # ##??????????#?????????## #??????????#?? | | ##?#?????############## %##???????????? | | ##??????# *%###########?? | | #??????# =[ = ##?? | | #??????# ########### *%######## #??? | | ##??#??# #??#??????# ##?#???## #??? | | ####### #?????????## ##?????## ##?? | | ## ###??#????## ####???#??# #?? | | %= ##???????## #?#???????# #?# | | % * ##??#???? #??# ?? ? # #?? | +----------------------------------------------------+ Best States ------------- Heat Dissipation 25 Energy Generation 10 Energy Capacity 250 Matter Stores 300 Matter Capacity 400 Sight Range 16 Robot Scan Range 14 Terrain Scan Range 16 Terrain Scan Density 10 Resistance: KI 20 Resistance: TH 20 Resistance: EX 20 Resistance: EM 20 Resistance: I 20 Resistance: S 20 Resistance: P 20 Evasion (%) 50 Recoil Reduction 2 Offensive Hacking 10 Item Schematics ----------------- None Robot Schematics ------------------ None Fabricated ------------ Nothing Alien Tech Used ----------------- None Achievements -------------- Exterminator Challenges ------------ None Game ------ Seed TargetCombatCoupler Manual? 0 Play Time 00:12:17 Cumulative 15.9 hours Start 2024.04.09 @ 16:54:33 End 2024.04.09 @ 17:07:00 Sessions 1 Manual Loads 0 Difficulty Adventurer Special Mode None Game No. 15 Rogue 0 Adventurer 15 Explorer 0 Win Type - Total 0 Types 0/0/0/0/0/0/0/0/0 Lore% 6 Gallery% 20 Achievement% 17 Wizard Run 0 Options --------- Layout 1 ASCII 0 Keyboard 0 Movement Mouse Keybinds 0 Fullscreen 0 Font 20/SmallcapsGlow Map View 50x35 Zoom Use 0% Tactical HUD 0 Map Filters NONE Filters NONE Steam 1 RUN: b81335a2-435b-4c1f-83f7-23dfc8a8dcd2